bitfinex/quotes_BTCUSD_20240908
["timestamp","ask_amount","ask_price","bid_price","bid_amount"]
[1725822995021,1.36749054,54613.0,54612.0,0.05357226]
[1725822995219,1.25750977,54613.0,54612.0,0.05357226]
[1725822995442,1.25750977,54613.0,54612.0,0.0368731]
[1725822995662,1.36749749,54613.0,54612.0,0.0428731]
[1725822995872,1.25750977,54613.0,54612.0,0.0428731]
[1725822996114,1.25750977,54613.0,54612.0,0.0368731]
[1725822996342,1.28622019,54613.0,54612.0,0.0368731]
[1725822996571,1.28922019,54613.0,54612.0,0.0368731]
[1725822996802,1.28822019,54613.0,54612.0,0.0268731]
[1725822997034,1.29122019,54613.0,54612.0,0.0268731]
[1725822997274,1.28822019,54613.0,54612.0,0.0268731]
[1725822997735,1.29022019,54613.0,54612.0,0.0268731]
[1725822997965,1.28522019,54613.0,54612.0,0.0268731]
[1725822998187,1.29322019,54613.0,54612.0,0.0268731]
[1725822998600,0.732437,54612.0,54611.0,0.00189609]
[1725822998813,1.08549344,54612.0,54611.0,0.00189609]
[1725823000062,1.08549301,54612.0,54611.0,0.00189609]
[1725823001246,1.37846801,54612.0,54611.0,0.00189609]
[1725823001480,1.38146801,54612.0,54611.0,0.00189609]
[1725823001945,1.38446801,54612.0,54611.0,0.00189609]
[1725823002415,1.41196461,54612.0,54611.0,0.00189609]
[1725823002654,1.44067606,54612.0,54611.0,0.00189609]
[1725823005040,1.44066598,54612.0,54611.0,0.00189609]
[1725823005289,1.30319306,54612.0,54611.0,0.00189609]
[1725823005517,1.65706806,54612.0,54611.0,0.00189609]
[1725823005765,1.71883768,54612.0,54611.0,0.00189609]
[1725823005999,2.02681268,54612.0,54611.0,0.00189609]
[1725823006242,0.146541,54592.0,54590.0,0.0931]
[1725823006710,1.19605644,54592.0,54591.0,0.01326773]
[1725823006954,1.22360065,54592.0,54591.0,0.01326773]
[1725823007171,1.27261745,54592.0,54591.0,0.00163]
[1725823007413,1.34130772,54592.0,54591.0,0.00163]
[1725823008611,1.47851375,54592.0,54591.0,0.00163]
[1725823008836,1.48351375,54592.0,54591.0,0.00163]
[1725823009076,1.48751375,54592.0,54591.0,0.00163]
[1725823009315,1.1838068,54592.0,54591.0,0.00163]
[1725823009537,1.1635107,54592.0,54591.0,0.00163]
[1725823010491,1.1585107,54592.0,54591.0,0.00163]
[1725823010724,1.1605107,54592.0,54591.0,0.00163]
[1725823010921,1.1545107,54592.0,54591.0,0.00163]
[1725823011169,1.18570706,54592.0,54591.0,0.09573]
[1725823011442,1.19470706,54592.0,54591.0,0.09573]
[1725823011670,1.18970706,54592.0,54591.0,0.09473]
[1725823011908,1.19770706,54592.0,54591.0,0.09573]
[1725823012136,1.18870706,54592.0,54591.0,0.09573]
[1725823012368,0.89562406,54592.0,54591.0,0.09573]
[1725823012596,0.89362406,54592.0,54591.0,0.09473]
[1725823013748,0.88762406,54592.0,54591.0,0.09473]
[1725823013985,0.90162406,54592.0,54591.0,0.09573]
[1725823014446,0.90162406,54592.0,54591.0,0.09473]
[1725823014447,0.88762406,54592.0,54591.0,0.09473]
[1725823014673,0.89862406,54592.0,54591.0,0.09573]
[1725823014904,0.89262406,54592.0,54591.0,0.09573]
[1725823015118,0.88762406,54592.0,54591.0,0.09473]
[1725823015392,0.89262406,54592.0,54591.0,0.09473]
[1725823015617,0.89662406,54592.0,54591.0,0.09473]
[1725823017223,0.89662406,54592.0,54591.0,0.16223]
[1725823017862,0.89262406,54592.0,54591.0,0.16223]
[1725823018127,0.89062406,54592.0,54591.0,0.16223]
[1725823018368,0.89462406,54592.0,54591.0,0.16223]
[1725823022011,0.89462406,54592.0,54591.0,0.16723]
[1725823022012,0.1327207,54592.0,54591.0,0.16723]
[1725823022236,0.293047,54599.0,54591.0,0.16723]
[1725823022237,0.146528,54597.0,54595.0,0.005]
[1725823022464,0.1,54598.0,54597.0,0.0794]
[1725823022688,0.02871825,54604.0,54600.0,0.0844]
[1725823022907,0.146512,54603.0,54600.0,0.0844]
[1725823023091,0.146515,54602.0,54601.0,0.01164971]
[1725823023375,0.146515,54602.0,54601.0,0.08804971]
[1725823023592,0.146515,54602.0,54601.0,0.09593432]
[1725823024024,0.246515,54602.0,54601.0,0.09593432]
[1725823024449,0.27522993,54602.0,54601.0,0.09593432]
[1725823024677,0.27522993,54602.0,54601.0,0.09493432]
[1725823025596,0.27522993,54602.0,54601.0,0.16153432]
[1725823027305,0.27522993,54602.0,54601.0,0.16553432]
[1725823031573,0.246515,54602.0,54601.0,0.16553432]
[1725823032044,0.539544,54602.0,54601.0,0.16553432]
[1725823032257,0.539544,54602.0,54601.0,0.16153432]
[1725823033568,0.539544,54602.0,54601.0,0.16553432]
[1725823033764,0.56825899,54602.0,54601.0,0.16553432]
[1725823034195,0.65438659,54602.0,54601.0,0.16553432]
[1725823036015,0.86128799,54602.0,54601.0,0.16053432]
[1725823036245,0.86128799,54602.0,54601.0,0.0834]
[1725823037179,1.15431699,54602.0,54601.0,0.0834]
[1725823037394,1.15513199,54602.0,54601.0,0.0834]
[1725823037832,1.27064519,54602.0,54601.0,0.0794]
[1725823038252,1.29164519,54602.0,54601.0,0.0804]
[1725823038719,1.28164519,54602.0,54601.0,0.0794]
[1725823038942,1.29264519,54602.0,54601.0,0.0794]
[1725823039742,1.27564519,54602.0,54601.0,0.0794]
[1725823039888,1.28164519,54602.0,54601.0,0.0794]
[1725823040301,1.27664519,54602.0,54601.0,0.0794]
[1725823040509,1.28164519,54602.0,54601.0,0.0794]
[1725823041198,1.27064519,54602.0,54601.0,0.0794]
[1725823041363,1.27664519,54602.0,54601.0,0.0794]
[1725823041567,1.28164519,54602.0,54601.0,0.0794]
[1725823041774,1.27564519,54602.0,54601.0,0.0794]
[1725823041938,1.28164519,54602.0,54601.0,0.0794]
[1725823042360,1.27564519,54602.0,54601.0,0.0794]
[1725823042593,1.16113199,54602.0,54601.0,0.07923]
[1725823042812,1.15513199,54602.0,54601.0,0.07923]
[1725823043932,0.86210299,54602.0,54601.0,0.07923]
[1725823044136,0.86810299,54602.0,54601.0,0.13933]
[1725823044345,0.87310299,54602.0,54601.0,0.13933]
[1725823044557,0.86710299,54602.0,54601.0,0.13933]
[1725823045001,0.86210299,54602.0,54601.0,0.13933]
[1725823045231,0.86510299,54602.0,54601.0,0.13933]
[1725823045436,0.86910299,54602.0,54601.0,0.13933]
[1725823045644,0.86610299,54602.0,54601.0,0.13933]
[1725823046085,0.87110299,54602.0,54601.0,0.13933]
[1725823046331,0.58860006,54602.0,54601.0,0.13933]
[1725823047414,0.73311506,54602.0,54601.0,0.13933]
[1725823047638,0.73411506,54602.0,54601.0,0.13933]
[1725823048734,0.82611506,54602.0,54601.0,0.13933]
[1725823049196,0.82711506,54602.0,54601.0,0.14033]
[1725823049393,0.82611506,54602.0,54601.0,0.14196]
[1725823049855,0.82711506,54602.0,54601.0,0.14196]
[1725823050075,0.79740007,54602.0,54601.0,0.14196]
[1725823050269,0.80040007,54602.0,54601.0,0.14096]
[1725823050686,0.80140007,54602.0,54601.0,0.14096]
[1725823051161,0.80040007,54602.0,54601.0,0.14096]
[1725823051595,0.80240007,54602.0,54601.0,0.14096]
[1725823052024,0.80040007,54602.0,54601.0,0.14096]
[1725823052257,0.79740007,54602.0,54601.0,0.14096]
[1725823052498,0.79840007,54602.0,54601.0,0.14096]
[1725823053101,0.80140007,54602.0,54601.0,0.14096]
[1725823053304,0.8301159,54602.0,54601.0,0.14096]
[1725823053762,0.8271159,54602.0,54601.0,0.14096]
[1725823054033,0.8261159,54602.0,54601.0,0.14096]
[1725823054281,0.13253083,54602.0,54601.0,0.160556]
[1725823054514,0.03253083,54602.0,54601.0,0.585511]
[1725823054744,0.292996,54609.0,54603.0,0.0642]
[1725823054975,0.146502,54607.0,54606.0,0.1444]
[1725823055190,0.146502,54607.0,54606.0,0.1434]
[1725823055607,0.146502,54607.0,54606.0,0.15488883]
[1725823055814,0.146502,54607.0,54606.0,0.15388883]
[1725823056375,0.147502,54607.0,54606.0,0.15388883]
[1725823057428,0.147502,54607.0,54606.0,0.15888883]
[1725823060289,0.440504,54607.0,54606.0,0.15888883]
[1725823060708,0.147502,54607.0,54606.0,0.15888883]
[1725823061778,0.148317,54607.0,54606.0,0.15888883]
[1725823062756,0.148317,54607.0,54606.0,0.1474]
[1725823063117,0.148317,54607.0,54606.0,0.15888886]
[1725823063734,0.148317,54607.0,54606.0,0.1474]
[1725823064597,0.20324439,54607.0,54606.0,0.1474]
[1725823065496,0.148317,54607.0,54606.0,0.1474]
[1725823065949,0.148317,54607.0,54606.0,0.15888886]
[1725823067084,0.441319,54607.0,54606.0,0.15588886]
[1725823067300,0.81676169,54607.0,54606.0,0.15588886]
[1725823067519,0.87290021,54607.0,54606.0,0.15588886]
[1725823067739,0.87290021,54607.0,54606.0,0.1444]
[1725823067986,0.87190021,54607.0,54606.0,0.1444]
[1725823068218,0.439536,54603.0,54602.0,0.144]
[1725823068661,0.146512,54603.0,54602.0,0.144]
[1725823068879,0.146512,54603.0,54602.0,0.1554853]
[1725823068880,0.20148651,54603.0,54602.0,0.1554853]
[1725823069582,0.20248651,54603.0,54602.0,0.1564853]
[1725823069820,0.20148651,54603.0,54602.0,0.1554853]
[1725823070721,0.146512,54603.0,54602.0,0.1554853]
[1725823070924,0.439536,54603.0,54602.0,0.1584853]
[1725823071156,0.49433851,54603.0,54602.0,0.1584853]
[1725823071373,0.49433851,54603.0,54602.0,0.1594853]
[1725823071598,0.52305282,54603.0,54602.0,0.1584853]
[1725823071817,0.52305282,54603.0,54602.0,0.1594853]
[1725823072262,0.46807831,54603.0,54602.0,0.1594853]
[1725823072473,0.52305409,54603.0,54602.0,0.1594853]
[1725823073385,0.52305409,54603.0,54602.0,0.1611153]
[1725823074034,0.52082939,54603.0,54602.0,0.1611153]
[1725823077180,0.46585361,54603.0,54602.0,0.1611153]
[1725823077412,0.52083036,54603.0,54602.0,0.1611153]
[1725823078287,0.52083036,54603.0,54602.0,0.14963]
[1725823078945,0.52083036,54603.0,54602.0,0.16111765]
[1725823079193,0.52083036,54603.0,54602.0,0.14963]
[1725823079418,0.52083036,54603.0,54602.0,0.16111765]
[1725823079633,0.52083036,54603.0,54602.0,0.14963]
[1725823079853,0.52083036,54603.0,54602.0,0.16111765]
[1725823080499,0.439364,54603.0,54602.0,0.16111765]
[1725823081014,0.439364,54603.0,54602.0,0.14963]
[1725823081863,0.439364,54603.0,54602.0,0.16111932]
[1725823082326,0.78736149,54603.0,54602.0,0.16111932]
[1725823082535,0.732388,54603.0,54602.0,0.15811932]
[1725823082750,0.81484824,54603.0,54602.0,0.14663]
[1725823083174,0.81484824,54603.0,54602.0,0.15811879]
[1725823083837,0.81484824,54603.0,54602.0,0.16111879]
[1725823085149,0.81484824,54603.0,54602.0,0.16011879]
[1725823085363,0.81566324,54603.0,54602.0,0.16011879]
[1725823085591,0.81566324,54603.0,54602.0,0.16111879]
[1725823085809,0.81567407,54603.0,54602.0,0.16111879]
[1725823086487,0.733203,54603.0,54602.0,0.15811879]
[1725823086931,0.81567407,54603.0,54602.0,0.16011879]
[1725823088022,0.64185002,54603.0,54602.0,0.16011879]
[1725823088516,0.49533802,54603.0,54602.0,0.14863]
[1725823089173,0.49533802,54603.0,54602.0,0.15511904]
[1725823089604,0.49533802,54603.0,54602.0,0.15811904]
[1725823090086,0.440351,54603.0,54602.0,0.15811904]
[1725823090303,0.81584607,54603.0,54602.0,0.14563]
[1725823090526,0.81584607,54603.0,54602.0,0.08603]
[1725823090527,0.733375,54603.0,54602.0,0.08603]
[1725823090744,0.75367774,54603.0,54602.0,0.08603]
[1725823091404,0.75367774,54603.0,54602.0,0.08503]
[1725823091617,0.75367774,54603.0,54602.0,0.08603]
[1725823091844,0.75367774,54603.0,54602.0,0.08503]
[1725823092488,0.8858371,54603.0,54602.0,0.08203]
[1725823092742,0.8858371,54603.0,54602.0,0.08403]
[1725823093341,0.8858371,54603.0,54602.0,0.08203]
[1725823093616,0.8858371,54603.0,54602.0,0.08303]
[1725823095790,0.88583862,54603.0,54602.0,0.08303]
[1725823098971,0.75368022,54603.0,54602.0,0.08303]
[1725823099450,1.04670422,54603.0,54602.0,0.08303]
[1725823099688,0.75368022,54603.0,54602.0,0.08303]
[1725823100162,0.89120158,54603.0,54602.0,0.08203]
[1725823100411,1.18422558,54603.0,54602.0,0.08203]
[1725823100649,0.89120158,54603.0,54602.0,0.08203]
[1725823100895,0.89520279,54603.0,54602.0,0.08203]
[1725823101136,1.18822679,54603.0,54602.0,0.00163]
[1725823101372,1.18422679,54603.0,54602.0,0.00163]
[1725823101618,0.89220279,54603.0,54602.0,0.00163]
[1725823102111,0.75468095,54603.0,54602.0,0.00163]
[1725823103078,0.75868095,54603.0,54602.0,0.00163]
[1725823103564,0.75468095,54603.0,54602.0,0.00163]
[1725823105688,0.75468219,54603.0,54602.0,0.00163]
[1725823107561,0.84940199,54603.0,54602.0,0.00163]
[1725823108320,1.14242599,54603.0,54602.0,0.00163]
[1725823108573,1.43441552,54603.0,54602.0,0.00163]
[1725823109084,1.72743952,54603.0,54602.0,0.00163]
[1725823109339,1.67806389,54603.0,54602.0,0.00163]
[1725823110047,1.67906389,54603.0,54602.0,0.00163]
[1725823110519,1.24149243,54603.0,54602.0,0.00163]
[1725823110982,1.24949243,54603.0,54602.0,0.00263]
[1725823111735,1.25149243,54603.0,54602.0,0.00263]
[1725823112460,1.55551643,54603.0,54602.0,0.00263]
[1725823115500,1.56081553,54603.0,54602.0,0.00263]
[1725823115933,1.7457986,54603.0,54602.0,0.00263]
[1725823116996,1.7477986,54603.0,54602.0,0.00263]
[1725823117487,1.79662626,54603.0,54602.0,0.00263]
[1725823118893,2.08965026,54603.0,54602.0,0.00263]
[1725823119197,1.7477986,54603.0,54602.0,0.00263]
[1725823121237,2.0408226,54603.0,54602.0,0.00263]
[1725823121910,1.7477986,54603.0,54602.0,0.00263]
[1725823123725,2.0408226,54603.0,54602.0,0.00263]
[1725823124619,1.7477986,54603.0,54602.0,0.00263]
[1725823125295,1.74573487,54603.0,54602.0,0.00263]
[1725823125832,2.03875887,54603.0,54602.0,0.00263]
[1725823126272,1.74573487,54603.0,54602.0,0.00263]
[1725823126527,1.74573487,54603.0,54578.0,0.08781065]
[1725823126528,1.036165,54572.0,54571.0,0.0786]
[1725823126807,1.08109147,54572.0,54571.0,0.0786]
[1725823127021,0.832975,54572.0,54571.0,0.08882102]
[1725823127264,1.126165,54572.0,54571.0,0.0786]
[1725823127541,1.126165,54572.0,54567.0,0.00163]
[1725823127542,0.743002,54570.0,54567.0,0.08023]
[1725823127752,1.16623911,54570.0,54567.0,0.08023]
[1725823127986,1.05648319,54570.0,54567.0,0.08023]
[1725823128214,1.29367809,54570.0,54567.0,0.08023]
[1725823128481,1.29368656,54570.0,54567.0,0.08023]
[1725823128753,1.46368419,54570.0,54569.0,0.00263]
[1725823129250,1.28014803,54570.0,54569.0,0.00263]
[1725823129525,1.23801365,54570.0,54569.0,0.00263]
[1725823129712,1.23801365,54570.0,54569.0,0.00163]
[1725823129912,1.40899672,54570.0,54569.0,0.00163]
[1725823130376,1.42299672,54570.0,54569.0,0.00163]
[1725823130665,1.4637595,54570.0,54569.0,0.00163]
[1725823131149,1.40899672,54570.0,54569.0,0.00163]
[1725823131389,1.23801365,54570.0,54569.0,0.00163]
[1725823132097,1.53121465,54570.0,54569.0,0.00163]
[1725823132334,1.150203,54570.0,54569.0,0.00163]
[1725823132577,1.23801365,54570.0,54569.0,0.00163]
[1725823132812,1.66622301,54570.0,54569.0,0.00163]
[1725823133521,1.37302201,54570.0,54569.0,0.00163]
[1725823133973,1.66622301,54570.0,54569.0,0.00163]
[1725823134414,1.37302201,54570.0,54569.0,0.00163]
[1725823134673,1.66622301,54570.0,54569.0,0.00163]
[1725823136684,1.71053165,54566.0,54565.0,1e-06]
[1725823136903,1.71253165,54566.0,54565.0,1e-06]
[1725823137160,1.86968511,54566.0,54565.0,1e-06]
[1725823137660,1.60520267,54566.0,54565.0,1e-06]
[1725823137904,1.60320267,54566.0,54565.0,1e-06]
[1725823138148,2.03143303,54566.0,54565.0,1e-06]
[1725823138383,2.06443303,54566.0,54565.0,1e-06]
[1725823139957,1.331548,54564.0,54563.0,0.00162]
[1725823140208,1.431548,54564.0,54563.0,0.00162]
[1725823140454,1.429548,54564.0,54563.0,0.00162]
[1725823140689,1.58969378,54564.0,54563.0,0.00162]
[1725823141392,1.441548,54564.0,54563.0,0.00162]
[1725823142312,1.429548,54564.0,54563.0,0.00162]
[1725823143210,1.445548,54564.0,54563.0,0.00162]
[1725823143444,1.443548,54564.0,54563.0,0.00162]
[1725823144284,1.429548,54564.0,54563.0,0.00162]
[1725823144509,1.431548,54564.0,54563.0,0.00162]
[1725823144721,1.62853107,54564.0,54563.0,0.00162]
[1725823146026,1.443548,54564.0,54563.0,0.14422]
[1725823146243,1.53135865,54564.0,54563.0,0.14422]
[1725823147340,1.51735865,54564.0,54563.0,0.14422]
[1725823147789,1.53135865,54564.0,54563.0,0.14422]
[1725823147998,1.51735865,54564.0,54563.0,0.14422]
[1725823148217,1.6764198,54564.0,54563.0,0.14422]
[1725823148495,1.6904198,54564.0,54563.0,0.14422]
[1725823149355,1.5059098,54564.0,54563.0,0.14422]
[1725823150652,1.4919098,54564.0,54563.0,0.14422]
[1725823150863,1.5059098,54564.0,54563.0,0.14422]
[1725823151125,1.4919098,54564.0,54563.0,0.14422]
[1725823151517,1.12486615,54564.0,54563.0,0.14422]
[1725823151985,1.25175912,54564.0,54563.0,0.14422]
[1725823153137,1.12486615,54564.0,54563.0,0.14422]
[1725823158747,1.11086615,54564.0,54563.0,0.14422]
[1725823158983,1.11686615,54564.0,54563.0,0.14422]
[1725823162303,1.19038915,54564.0,54563.0,0.14422]
[1725823168551,1.27232004,54564.0,54563.0,0.14422]
[1725823169024,1.45730311,54564.0,54563.0,0.14422]
[1725823169250,1.45811911,54564.0,54563.0,0.14422]
[1725823169672,1.50568519,54564.0,54563.0,0.14422]
[1725823170349,1.79891819,54564.0,54563.0,0.00162]
[1725823170561,1.74683046,54564.0,54563.0,0.00162]
[1725823171196,1.74883046,54564.0,54563.0,0.00162]
[1725823171672,1.85463021,54564.0,54563.0,0.00162]
[1725823172498,1.77910666,54564.0,54563.0,0.00162]
[1725823172946,1.66942122,54564.0,54563.0,0.00162]
[1725823173174,1.77934416,54564.0,54563.0,0.00162]
[1725823174774,1.78134416,54564.0,54563.0,0.00162]
[1725823175485,1.96708956,54564.0,54563.0,0.00162]
[1725823175692,1.96508956,54564.0,54563.0,0.00162]
[1725823175906,1.78134416,54564.0,54563.0,0.00162]
[1725823176152,1.77934416,54564.0,54563.0,0.00162]
[1725823179725,1.78134416,54564.0,54563.0,0.00162]
[1725823181148,1.77934416,54564.0,54563.0,0.00162]
[1725823181406,1.59436109,54564.0,54563.0,0.00162]
[1725823182845,1.59493035,54564.0,54563.0,0.00162]
[1725823184489,1.59423035,54564.0,54563.0,0.00162]
[1725823187784,1.59475436,54564.0,54563.0,0.00162]
[1725823188660,1.59675436,54564.0,54563.0,0.00162]
[1725823190467,1.59675436,54564.0,54563.0,0.06262]
[1725823190654,1.78063782,54564.0,54563.0,0.14082]
[1725823190897,1.78063519,54564.0,54563.0,0.14082]
[1725823191123,1.59475436,54564.0,54563.0,0.14082]
[1725823191339,1.96561826,54564.0,54563.0,0.14082]
[1725823191561,1.77973743,54564.0,54563.0,0.14082]
[1725823192664,1.77997116,54564.0,54563.0,0.14082]
[1725823194704,1.78197116,54564.0,54563.0,0.14082]
[1725823197786,1.78197116,54564.0,54563.0,0.0034038]
[1725823197787,1.77997116,54564.0,54563.0,0.0034038]
[1725823198680,1.78197116,54564.0,54563.0,0.0034038]
[1725823200377,1.77997116,54564.0,54563.0,0.0034038]
[1725823204634,1.77997116,54564.0,54563.0,0.0050358]
[1725823205711,2.07320416,54564.0,54563.0,0.0050358]
[1725823205932,1.78197116,54564.0,54563.0,0.0050358]
[1725823206392,1.77997116,54564.0,54563.0,0.0050358]
[1725823207059,1.78197116,54564.0,54563.0,0.0050358]
[1725823207518,1.77997116,54564.0,54563.0,0.0050358]
[1725823211264,1.77943295,54564.0,54563.0,0.0050358]
[1725823213360,1.78143295,54564.0,54563.0,0.0050358]
[1725823213590,1.77943295,54564.0,54563.0,0.0050358]
[1725823214235,1.78143295,54564.0,54563.0,0.0050358]
[1725823214448,2.07466595,54564.0,54563.0,0.0050358]
[1725823214673,2.07266595,54564.0,54563.0,0.0050358]
[1725823216250,1.77884223,54564.0,54563.0,0.0050358]
[1725823216466,2.07207523,54564.0,54563.0,0.0050358]
[1725823216692,1.77884223,54564.0,54563.0,0.0050358]
[1725823217575,1.77854223,54564.0,54563.0,0.0050358]
[1725823218456,1.78054223,54564.0,54563.0,0.0050358]
[1725823219792,1.77854223,54564.0,54563.0,0.0050358]
[1725823220682,1.52368275,54564.0,54563.0,0.0050358]
[1725823220921,1.17015901,54564.0,54563.0,0.0050358]
[1725823221166,1.31700094,54564.0,54563.0,0.0050358]
[1725823221380,1.61023394,54564.0,54563.0,0.0050358]
[1725823221833,1.61223394,54564.0,54563.0,0.0050358]
[1725823222304,1.78964529,54564.0,54563.0,0.0050358]
[1725823223470,1.61223394,54564.0,54563.0,0.0050358]
[1725823223684,1.61023394,54564.0,54563.0,0.0050358]
[1725823226291,1.61014752,54564.0,54563.0,0.0050358]
[1725823231379,1.60978185,54564.0,54563.0,0.0050358]
[1725823231836,1.61178185,54564.0,54563.0,0.0050358]
[1725823232318,1.60978185,54564.0,54563.0,0.0050358]
[1725823232593,1.026336,54563.0,54562.0,0.06662]
[1725823232857,1.23623085,54563.0,54562.0,0.06662]
[1725823233114,0.54975285,54563.0,54562.0,0.06662]
[1725823233335,0.46020823,54563.0,54562.0,0.06662]
[1725823233558,0.59799841,54563.0,54562.0,0.06662]
[1725823233802,0.08259521,54563.0,54562.0,0.07962]
[1725823233986,0.23602721,54564.0,54563.0,0.0656]
[1725823234206,0.440665,54564.0,54563.0,0.0656]
[1725823234437,0.540665,54564.0,54563.0,0.0656]
[1725823234700,0.59569901,54564.0,54563.0,0.0606]
[1725823235148,0.59569901,54564.0,54563.0,0.0616]
[1725823235358,0.59569901,54564.0,54563.0,0.0606]
[1725823235569,0.540665,54564.0,54563.0,0.1364]
[1725823235781,0.541665,54564.0,54563.0,0.1384]
[1725823236691,0.88989656,54564.0,54563.0,0.1384]
[1725823236910,0.88989808,54564.0,54563.0,0.1384]
[1725823237366,0.88889808,54564.0,54563.0,0.1364]
[1725823237594,0.88989808,54564.0,54563.0,0.1434]
[1725823238479,0.88888844,54564.0,54563.0,0.1364]
[1725823238698,0.88888844,54564.0,54563.0,0.1414]
[1725823238912,0.88888844,54564.0,54563.0,0.1364]
[1725823239393,0.88888844,54564.0,54563.0,0.1404]
[1725823239610,0.88888844,54564.0,54563.0,0.142032]
[1725823240560,0.88888844,54564.0,54563.0,0.138032]
[1725823240972,0.833898,54564.0,54563.0,0.141032]
[1725823241182,0.833898,54564.0,54563.0,0.138032]
[1725823241408,0.833898,54564.0,54563.0,0.141032]
[1725823243664,0.833898,54564.0,54563.0,0.138032]
[1725823243873,0.833898,54564.0,54563.0,0.139032]
[1725823245016,0.96607488,54564.0,54563.0,0.139032]
[1725823247032,0.833898,54564.0,54563.0,0.139032]
[1725823249613,0.833898,54564.0,54563.0,0.138032]
[1725823250043,0.833898,54564.0,54563.0,0.140032]
[1725823254945,0.833898,54564.0,54563.0,0.138032]
[1725823255173,0.833898,54564.0,54563.0,0.141032]
[1725823256093,0.98439054,54564.0,54563.0,0.141032]
[1725823257361,0.98439054,54564.0,54563.0,0.138032]
[1725823260215,1.27762354,54564.0,54563.0,0.138032]
[1725823262244,1.127131,54564.0,54563.0,0.138032]
[1725823263513,1.129131,54564.0,54563.0,0.138032]
[1725823263800,1.18207061,54564.0,54563.0,0.138032]
[1725823264023,1.15586724,54564.0,54563.0,0.138032]
[1725823264235,1.15786724,54564.0,54563.0,0.138032]
[1725823264878,1.15586724,54564.0,54563.0,0.138032]
[1725823267541,1.128131,54564.0,54563.0,0.138032]
[1725823267993,1.26486334,54564.0,54563.0,0.138032]
[1725823268649,1.31980295,54564.0,54563.0,0.138032]
[1725823270677,1.29359971,54564.0,54563.0,0.138032]
[1725823272696,1.37600913,54564.0,54563.0,0.138032]
[1725823274576,1.29359971,54564.0,54563.0,0.138032]
[1725823275682,1.43061326,54564.0,54563.0,0.138032]
[1725823277649,1.32135072,54564.0,54563.0,0.138032]
[1725823277861,1.29261435,54564.0,54563.0,0.138032]
[1725823278697,1.15526532,54564.0,54563.0,0.138032]
[1725823278959,1.22878332,54564.0,54563.0,0.138032]
[1725823279419,1.25751953,54564.0,54563.0,0.138032]
[1725823279632,1.4025863,54564.0,54563.0,0.138032]
[1725823279852,1.4015863,54564.0,54563.0,0.138032]
[1725823280061,1.4075863,54564.0,54563.0,0.139032]
[1725823280304,1.4015863,54564.0,54563.0,0.138032]
[1725823280743,1.4075863,54564.0,54563.0,0.139032]
[1725823282015,1.26251953,54564.0,54563.0,0.139032]
[1725823282480,1.26251953,54564.0,54563.0,0.138032]
[1725823282481,1.25651953,54564.0,54563.0,0.138032]
[1725823282712,1.26251953,54564.0,54563.0,0.139032]
[1725823285808,1.26251953,54564.0,54563.0,0.149032]
[1725823286013,1.4080863,54564.0,54563.0,0.149032]
[1725823286665,1.4080863,54564.0,54563.0,0.148032]
[1725823286666,1.4020863,54564.0,54563.0,0.148032]
[1725823286886,1.4100863,54564.0,54563.0,0.149032]
[1725823287120,1.78312995,54564.0,54563.0,0.011632]
[1725823287332,2.2569262,54564.0,54563.0,0.011632]
[1725823287559,2.29566276,54564.0,54563.0,0.012632]
[1725823288696,2.29566276,54564.0,54563.0,0.011632]
[1725823288931,2.28566276,54564.0,54563.0,0.011632]
[1725823289147,2.29766276,54564.0,54563.0,0.011632]
[1725823289375,2.38334832,54564.0,54563.0,0.011632]
[1725823289614,2.38134832,54564.0,54563.0,0.011632]
[1725823289838,2.30253767,54564.0,54563.0,0.011632]
[1725823290016,2.38134832,54564.0,54563.0,0.011632]
[1725823290253,2.39534832,54564.0,54563.0,0.011632]
[1725823290670,2.38134832,54564.0,54563.0,0.011632]
[1725823291158,2.45054832,54564.0,54563.0,0.011632]
[1725823291381,0.148622,54562.0,54561.0,0.00162]
[1725823291705,0.59278788,54562.0,54561.0,0.00162]
[1725823291804,0.42917546,54562.0,54561.0,0.00162]
[1725823292026,0.64994134,54562.0,54561.0,0.00162]
[1725823292257,2.11616134,54562.0,54561.0,0.00162]
[1725823292476,2.26172811,54562.0,54561.0,0.00162]
[1725823293169,2.27572811,54562.0,54561.0,0.00162]
[1725823293368,2.26172811,54562.0,54561.0,0.00162]
[1725823293591,2.27572811,54562.0,54561.0,0.00162]
[1725823295445,2.26172811,54562.0,54561.0,0.00162]
[1725823295911,2.27572811,54562.0,54561.0,0.00162]
[1725823296132,1.83615644,54562.0,54561.0,0.00162]
[1725823296358,1.99677844,54562.0,54561.0,0.00162]
[1725823296576,1.99759344,54562.0,54561.0,0.00162]
[1725823296832,1.98359344,54562.0,54561.0,0.00162]
[1725823297052,1.99759344,54562.0,54561.0,0.00162]
[1725823297283,1.98359344,54562.0,54561.0,0.00162]
[1725823298624,1.99759344,54562.0,54561.0,0.00162]
[1725823299075,1.026522,54553.0,54552.0,0.08]
[1725823299294,1.026522,54553.0,54550.0,0.0632]
[1725823299295,0.146651,54551.0,54550.0,0.0632]
[1725823299524,0.733257,54551.0,54550.0,0.0632]
[1725823299756,1.23772396,54551.0,54550.0,0.0632]
[1725823299970,1.23772396,54551.0,54550.0,0.1432]
[1725823300182,1.15530482,54551.0,54550.0,0.1432]
[1725823300394,1.23772396,54551.0,54550.0,0.1432]
[1725823300611,1.15530482,54551.0,54550.0,0.1432]
[1725823300830,1.23772396,54551.0,54550.0,0.1432]
[1725823301298,1.15530482,54551.0,54550.0,0.1432]
[1725823301718,1.21023603,54551.0,54550.0,0.1432]
[1725823301976,1.16530482,54551.0,54550.0,0.1432]
[1725823302194,1.21023519,54551.0,54550.0,0.1432]
[1725823302406,1.21923519,54551.0,54550.0,0.1432]
[1725823302613,1.24583897,54551.0,54550.0,0.1432]
[1725823303556,1.1909086,54551.0,54550.0,0.1432]
[1725823304922,1.35856161,54551.0,54550.0,0.1432]
[1725823306665,1.44092808,54551.0,54550.0,0.1432]
[1725823307071,1.27327507,54551.0,54550.0,0.1432]
[1725823308176,1.27327086,54551.0,54550.0,0.1432]
[1725823308603,1.27327086,54551.0,54550.0,0.14483]
[1725823308818,1.34681186,54551.0,54550.0,0.14483]
[1725823309247,1.2554496,54551.0,54550.0,0.14483]
[1725823309456,1.2634496,54551.0,54550.0,0.14483]
[1725823309701,1.34580588,54551.0,54550.0,0.14483]
[1725823311256,1.53078895,54551.0,54550.0,0.14483]